fUST/lending_fUST_20250717
["ID","MTS","AMOUNT","RATE_DAILY","PERIOD"]
[372783612,1752760237918,-460.0,0.00016536,2]
[372783614,1752760237929,-460.0,0.00016536,2]
[372783616,1752760237939,-580.0,0.00016536,2]
[372783618,1752760237949,-5134.34991698,0.00016536,2]
[372783620,1752760237958,-791.92399047,0.00016536,2]
[372783622,1752760237968,-17541.85174149,0.00016537,2]
[372783624,1752760237980,-312373.1895888,0.00016537,2]
[372783626,1752760237990,-528.29101688,0.00016636,2]
[372783628,1752760238000,-460.0,0.00016636,2]
[372783630,1752760238009,-460.0,0.00016636,2]
[372783632,1752760238019,-460.0,0.00016636,2]
[372783635,1752760238029,-460.0,0.00016636,2]
[372783638,1752760238038,-460.0,0.00016636,2]
[372783641,1752760238048,-460.0,0.00016636,2]
[372783644,1752760238057,-460.0,0.00016636,2]
[372783647,1752760238067,-464.37241788,0.00016636,2]
[372783650,1752760238076,-460.0,0.00016636,2]
[372783653,1752760238085,-460.0,0.00016636,2]
[372783656,1752760238094,-460.0,0.00016636,2]
[372783659,1752760238104,-460.0,0.00016636,2]
[372783661,1752760238113,-460.0,0.00016636,2]
[372783663,1752760238123,-460.0,0.00016636,2]
[372783665,1752760238132,-460.0,0.00016636,2]
[372783667,1752760238142,-460.0,0.00016636,2]
[372783669,1752760238152,-460.0,0.00016636,2]
[372783671,1752760238161,-460.0,0.00016636,2]
[372783673,1752760238171,-460.0,0.00016636,2]
[372783676,1752760238181,-460.0,0.00016636,2]
[372783677,1752760238190,-460.0,0.00016636,2]
[372783679,1752760238200,-460.0,0.00016636,2]
[372783682,1752760238210,-460.0,0.00016636,2]
[372783683,1752760238219,-460.0,0.00016636,2]
[372783686,1752760238228,-460.0,0.00016636,2]
[372783687,1752760238238,-460.0,0.00016636,2]
[372783689,1752760238247,-460.0,0.00016636,2]
[372783692,1752760238257,-460.0,0.00016636,2]
[372783694,1752760238267,-474.86429662,0.00016636,2]
[372783696,1752760238276,-460.0,0.00016636,2]
[372783697,1752760238287,-460.0,0.00016636,2]
[372783699,1752760238299,-460.0,0.00016636,2]
[372783702,1752760238308,-460.0,0.00016636,2]
[372783704,1752760238318,-460.0,0.00016636,2]
[372783706,1752760238328,-460.0,0.00016636,2]
[372783708,1752760238338,-460.0,0.00016636,2]
[372783710,1752760238347,-460.0,0.00016636,2]
[372783711,1752760238357,-460.0,0.00016636,2]
[372783713,1752760238367,-460.0,0.00016636,2]
[372783715,1752760238377,-460.0,0.00016636,2]
[372783717,1752760238386,-460.0,0.00016636,2]
[372783719,1752760238396,-460.0,0.00016636,2]
[372783721,1752760238406,-309.42311904,0.00016636,2]
[372783723,1752760238416,-460.0,0.00016636,2]
[372783725,1752760238428,-460.0,0.00016636,2]
[372783727,1752760238437,-215.27466974,0.00016636,2]
[372783729,1752760238447,-460.0,0.00016636,2]
[372783731,1752760238461,-460.0,0.00016636,2]
[372783733,1752760238470,-460.0,0.00016636,2]
[372783735,1752760238480,-460.0,0.00016636,2]
[372783737,1752760238490,-460.0,0.00016636,2]
[372783739,1752760238500,-460.0,0.00016636,2]
[372783742,1752760238511,-466.89837697,0.00016636,2]
[372783743,1752760238520,-1431.69,0.00016636,2]
[372783745,1752760238530,-1222.37,0.00016636,2]
[372783748,1752760238540,-460.0,0.00016636,2]
[372783750,1752760238551,-460.0,0.00016636,2]
[372783752,1752760238560,-460.0,0.00016636,2]
[372783754,1752760238569,-460.0,0.00016636,2]
[372783756,1752760238578,-861.17,0.00016636,2]
[372783758,1752760238588,-460.0,0.00016636,2]
[372783759,1752760238597,-335.94590468,0.00016636,2]
[372783761,1752760238606,-2119.28,0.00016636,2]
[372783764,1752760238617,-460.0,0.00016637,2]
[372783766,1752760238627,-1275.28,0.00016637,2]
[372783768,1752760238636,-1466.19,0.00016637,2]
[372783770,1752760238646,-584.23,0.00016637,2]
[372783772,1752760238655,-432.7137466,0.00016762,2]
[372783774,1752760238666,-249.66,0.00016807,2]
[372783776,1752760238680,-460.0,0.00016807,2]
[372783778,1752760238689,-460.0,0.00016807,2]
[372783780,1752760238703,-2013.17,0.00016807,2]
[372783782,1752760238712,-460.0,0.00016807,2]
[372783784,1752760238722,-368.23,0.00016807,2]
[372783786,1752760238731,-460.0,0.00016807,2]
[372783788,1752760238741,-1586.2,0.00016807,2]
[372783790,1752760238751,-1261.6,0.00016807,2]
[372783792,1752760238761,-460.0,0.00016807,2]
[372783794,1752760238771,-460.0,0.00016807,2]
[372783796,1752760238780,-206.87878268,0.00016807,2]
[372783798,1752760238790,-559.81,0.00016807,2]
[372783800,1752760238799,-1260.13,0.00016807,2]
[372783802,1752760238808,-460.0,0.00016807,2]
[372783804,1752760238818,-760.38,0.00016807,2]
[372783806,1752760238827,-538.76,0.00016807,2]
[372783808,1752760238836,-460.0,0.00016807,2]
[372783810,1752760238846,-561.52,0.00016807,2]
[372783812,1752760238856,-460.0,0.00016807,2]
[372783814,1752760238865,-460.0,0.00016808,2]
[372783816,1752760238874,-460.0,0.00016808,2]
[372783818,1752760238884,-460.0,0.00016808,2]
[372783820,1752760238893,-460.0,0.00016808,2]
[372783822,1752760238903,-460.0,0.00016808,2]
[372783824,1752760238913,-460.0,0.00016808,2]
[372783826,1752760238922,-460.0,0.00016808,2]
[372783828,1752760238932,-460.0,0.00016808,2]
[372783830,1752760238942,-460.0,0.00016808,2]
[372783832,1752760238956,-460.0,0.00016808,2]
[372783834,1752760238966,-460.0,0.00016808,2]
[372783836,1752760238976,-460.0,0.00016808,2]
[372783838,1752760238985,-460.0,0.00016808,2]
[372783840,1752760238994,-460.0,0.00016808,2]
[372783842,1752760239004,-460.0,0.00016808,2]
[372783844,1752760239014,-460.0,0.00016808,2]
[372783846,1752760239024,-460.0,0.00016808,2]
[372783848,1752760239033,-460.0,0.00016808,2]
[372783850,1752760239042,-460.0,0.00016808,2]
[372783852,1752760239051,-460.0,0.00016809,2]
[372783854,1752760239061,-460.0,0.00016809,2]
[372783856,1752760239070,-460.0,0.00016809,2]
[372783858,1752760239080,-460.0,0.00016809,2]
[372783860,1752760239089,-460.0,0.00016809,2]
[372783862,1752760239098,-460.0,0.00016809,2]
[372783864,1752760239108,-1771.28,0.00016809,2]
[372783866,1752760239117,-460.0,0.00016809,2]
[372783868,1752760239126,-460.0,0.00016809,2]
[372783870,1752760239136,-485.98,0.00016809,2]
[372783872,1752760239145,-460.0,0.0001681,2]
[372783874,1752760239155,-460.0,0.0001681,2]
[372783876,1752760239165,-460.0,0.0001681,2]
[372783878,1752760239174,-839.39,0.0001681,2]
[372783880,1752760239183,-460.0,0.0001681,2]
[372783882,1752760239193,-460.0,0.00016838,2]
[372783884,1752760239208,-460.0,0.00016838,2]
[372783886,1752760239218,-460.0,0.00016838,2]
[372783889,1752760239228,-460.0,0.00016838,2]
[372783892,1752760239237,-460.0,0.00016838,2]
[372783895,1752760239247,-460.0,0.00016838,2]
[372783898,1752760239256,-460.0,0.00016838,2]
[372783900,1752760239265,-304.0587969,0.00016838,2]
[372783902,1752760239275,-536.61812896,0.00016838,2]
[372783904,1752760239284,-460.0,0.0001691,2]
[372783906,1752760239294,-460.0,0.0001691,2]
[372783908,1752760239304,-460.0,0.0001691,2]
[372783910,1752760239314,-460.0,0.0001691,2]
[372783912,1752760239325,-460.0,0.0001691,2]
[372783914,1752760239335,-460.0,0.0001691,2]
[372783934,1752760239483,-460.0,0.0001691,2]
[372783936,1752760239493,-460.0,0.0001691,2]
[372783938,1752760239503,-460.0,0.0001691,2]
[372783940,1752760239513,-460.0,0.0001691,2]
[372783942,1752760239522,-460.0,0.0001691,2]
[372783944,1752760239532,-460.0,0.0001691,2]
[372783946,1752760239543,-460.0,0.0001691,2]
[372783948,1752760239552,-460.0,0.0001691,2]
[372783950,1752760239562,-460.0,0.0001691,2]
[372783952,1752760239571,-460.0,0.0001691,2]
[372783954,1752760239581,-460.0,0.0001691,2]
[372783955,1752760239590,-460.0,0.0001691,2]
[372783956,1752760239600,-460.0,0.0001691,2]
[372783958,1752760239610,-460.0,0.0001691,2]
[372783960,1752760239619,-460.0,0.0001691,2]
[372783962,1752760239629,-460.0,0.0001691,2]
[372783964,1752760239640,-1431.69,0.0001691,2]
[372783966,1752760239649,-1222.37,0.0001691,2]
[372783968,1752760239660,-591.67124093,0.0001691,2]
[372783970,1752760239672,-460.0,0.0001691,2]
[372783972,1752760239681,-460.0,0.0001691,2]
[372783974,1752760239690,-861.17,0.0001691,2]
[372783976,1752760239704,-460.0,0.0001691,2]
[372783978,1752760239714,-2119.28,0.0001691,2]
[372783980,1752760239723,-460.0,0.00016911,2]
[372783982,1752760239733,-1275.28,0.00016911,2]
[372783984,1752760239744,-1466.19,0.00016911,2]
[372783986,1752760239755,-584.23,0.00016911,2]
[372783988,1752760239765,-897.42584293,0.00016925,2]
[372783990,1752760239774,-500.0,0.00016932,2]
[372783992,1752760239783,-460.0,0.00016932,2]
[372783994,1752760239792,-461.17470826,0.00016932,2]
[372783996,1752760239801,-497.28701315,0.00016932,2]
[372783998,1752760239811,-460.0,0.00016932,2]
[372784000,1752760239820,-460.0,0.00016932,2]
[372784002,1752760239830,-460.0,0.00016932,2]
[372784004,1752760239839,-460.0,0.00016932,2]
[372784006,1752760239849,-460.0,0.00016932,2]
[372784008,1752760239859,-468.03634932,0.00016932,2]
[372784010,1752760239876,-469.01255711,0.00016932,2]
[372784012,1752760239887,-460.0,0.00016932,2]
[372784014,1752760239896,-495.88673518,0.00016932,2]
[372784016,1752760239906,-460.0,0.00016932,2]
[372784018,1752760239915,-546.62496338,0.00016932,2]
[372784020,1752760239924,-460.0,0.00016932,2]
[372784022,1752760239934,-460.0,0.00016932,2]
[372784024,1752760239943,-460.0,0.00016932,2]
[372784026,1752760239955,-460.0,0.00016932,2]
[372784028,1752760239964,-460.0,0.00016932,2]
[372784030,1752760239974,-460.0,0.00016932,2]
[372784032,1752760239983,-460.0,0.00016932,2]
[372784034,1752760239992,-371.87,0.00016932,2]
[372784036,1752760240002,-460.0,0.00016932,2]
[372784038,1752760240011,-460.0,0.00016932,2]
[372784040,1752760240021,-460.0,0.00016932,2]
[372784042,1752760240031,-460.0,0.00016933,2]
[372784044,1752760240040,-460.0,0.00016933,2]
[372784046,1752760240049,-175.16,0.00016949,2]
[372784048,1752760240059,-500.0,0.00017029,2]
[372784050,1752760240067,-460.0,0.00017081,2]
[372784052,1752760240076,-2013.17,0.00017081,2]
[372784054,1752760240085,-1586.2,0.00017081,2]
[372784056,1752760240094,-1261.6,0.00017081,2]
[372784058,1752760240103,-460.0,0.00017081,2]
[372784060,1752760240112,-1260.13,0.00017081,2]
[372784062,1752760240120,-460.0,0.00017081,2]
[372784063,1752760240127,-760.38,0.00017081,2]
[372784065,1752760240136,-538.76,0.00017081,2]
[372784067,1752760240145,-460.0,0.00017081,2]
[372784069,1752760240154,-561.52,0.00017081,2]
[372784071,1752760240164,-280.20231224,0.00017082,2]
[372784073,1752760240173,-460.0,0.00017082,2]
[372784075,1752760240182,-460.0,0.00017082,2]
[372784077,1752760240191,-460.0,0.00017082,2]
[372784079,1752760240202,-460.0,0.00017082,2]
[372784081,1752760240213,-460.0,0.00017082,2]
[372784083,1752760240223,-460.0,0.00017082,2]
[372784085,1752760240232,-460.0,0.00017082,2]
[372784087,1752760240242,-460.0,0.00017082,2]
[372784089,1752760240251,-460.0,0.00017082,2]
[372784091,1752760240261,-460.0,0.00017082,2]
[372784093,1752760240271,-460.0,0.00017082,2]
[372784095,1752760240280,-460.0,0.00017082,2]
[372784097,1752760240289,-460.0,0.00017082,2]
[372784099,1752760240298,-460.0,0.00017082,2]
[372784101,1752760240308,-460.0,0.00017082,2]
[372784103,1752760240317,-460.0,0.00017083,2]
[372784105,1752760240327,-460.0,0.00017083,2]
[372784107,1752760240336,-460.0,0.00017083,2]
[372784109,1752760240345,-460.0,0.00017083,2]
[372784111,1752760240355,-1771.28,0.00017083,2]
[372784113,1752760240364,-460.0,0.00017083,2]
[372784115,1752760240374,-460.0,0.00017083,2]
[372784116,1752760240383,-485.98,0.00017083,2]
[372784117,1752760240392,-460.0,0.00017084,2]
[372784118,1752760240402,-460.0,0.00017084,2]
[372784119,1752760240411,-282.8024904,0.00017084,2]
[372784120,1752760240420,-839.39,0.00017084,2]
[372784121,1752760240430,-460.0,0.00017112,2]
[372784122,1752760240440,-460.0,0.00017112,2]
[372784123,1752760240449,-460.0,0.00017112,2]
[372784124,1752760240462,-460.0,0.00017184,2]
[372784125,1752760240473,-462.37344203,0.00017184,2]
[372784126,1752760240483,-460.0,0.00017184,2]
[372784127,1752760240492,-460.0,0.00017184,2]
[372784128,1752760240502,-460.0,0.00017184,2]
[372784129,1752760240511,-198.25473197,0.00017184,2]
[372784130,1752760240520,-460.0,0.00017184,2]
[372784131,1752760240530,-460.0,0.00017184,2]
[372784132,1752760240540,-460.0,0.00017184,2]
[372784133,1752760240549,-460.0,0.00017184,2]
[372784134,1752760240558,-460.0,0.00017184,2]
[372784135,1752760240568,-460.0,0.00017184,2]
[372784136,1752760240577,-460.0,0.00017184,2]
[372784137,1752760240587,-460.0,0.00017184,2]
[372784138,1752760240596,-460.0,0.00017184,2]
[372784139,1752760240606,-460.0,0.00017184,2]
[372784140,1752760240616,-513.90813364,0.00017184,2]
[372784141,1752760240625,-1431.69,0.00017184,2]
[372784142,1752760240635,-1222.37,0.00017184,2]
[372784143,1752760240646,-861.17,0.00017184,2]
[372784144,1752760240655,-460.0,0.00017184,2]
[372784145,1752760240668,-2119.28,0.00017184,2]
[372784146,1752760240678,-460.0,0.00017185,2]
[372784147,1752760240687,-1275.28,0.00017185,2]
[372784148,1752760240697,-1466.19,0.00017185,2]
[372784149,1752760240710,-584.23,0.00017185,2]
[372784150,1752760240719,-460.0,0.00017206,2]
[372784151,1752760240728,-460.0,0.00017206,2]
[372784152,1752760240738,-460.0,0.00017206,2]
[372784153,1752760240748,-460.0,0.00017206,2]
[372784154,1752760240758,-460.0,0.00017206,2]
[372784155,1752760240767,-460.0,0.00017207,2]
[372784156,1752760240777,-460.0,0.00017207,2]
[372784157,1752760240787,-460.0,0.00017355,2]
[372784158,1752760240796,-2013.17,0.00017355,2]
[372784159,1752760240805,-1586.2,0.00017355,2]
[372784160,1752760240814,-1261.6,0.00017355,2]
[372784161,1752760240823,-460.0,0.00017355,2]
[372784162,1752760240832,-1260.13,0.00017355,2]
[372784163,1752760240842,-460.0,0.00017355,2]
[372784164,1752760240851,-760.38,0.00017355,2]
[372784165,1752760240861,-538.76,0.00017355,2]
[372784166,1752760240870,-460.0,0.00017355,2]
[372784167,1752760240879,-561.52,0.00017355,2]
[372784168,1752760240888,-460.0,0.00017356,2]
[372784169,1752760240897,-460.0,0.00017356,2]
[372784170,1752760240906,-460.0,0.00017356,2]
[372784171,1752760240915,-433.85273542,0.00017356,2]
[372784172,1752760240924,-460.0,0.00017356,2]
[372784173,1752760240933,-460.0,0.00017356,2]
[372784174,1752760240942,-460.0,0.00017356,2]
[372784175,1752760240951,-460.0,0.00017356,2]
[372784176,1752760240967,-407.46449632,0.00017356,2]
[372784177,1752760240976,-460.0,0.00017356,2]
[372784178,1752760240985,-460.0,0.00017356,2]
[372784179,1752760240994,-460.0,0.00017356,2]
[372784180,1752760241003,-300.93070437,0.00017357,2]
[372784181,1752760241013,-460.0,0.00017357,2]
[372784182,1752760241022,-460.0,0.00017357,2]
[372784183,1752760241031,-460.0,0.00017357,2]
[372784184,1752760241040,-1771.28,0.00017357,2]
[372784185,1752760241049,-460.0,0.00017357,2]
[372784186,1752760241062,-460.0,0.00017357,2]
[372784187,1752760241077,-485.98,0.00017357,2]
[372784188,1752760241086,-460.0,0.00017358,2]
[372784189,1752760241096,-839.39,0.00017358,2]
[372784190,1752760241105,-460.0,0.00017386,2]
[372784191,1752760241114,-342.38800961,0.00017458,2]
[372784192,1752760241123,-460.0,0.00017458,2]
[372784193,1752760241132,-460.0,0.00017458,2]
[372784194,1752760241141,-460.0,0.00017458,2]
[372784195,1752760241150,-460.0,0.00017458,2]
[372784196,1752760241159,-460.0,0.00017458,2]
[372784197,1752760241168,-460.0,0.00017458,2]
[372784198,1752760241178,-460.0,0.00017458,2]
[372784199,1752760241186,-460.0,0.00017458,2]
[372784200,1752760241195,-460.0,0.00017458,2]
[372784201,1752760241207,-460.0,0.00017458,2]
[372784202,1752760241215,-460.0,0.00017458,2]
[372784203,1752760241224,-1431.69,0.00017458,2]
[372784204,1752760241234,-1222.37,0.00017458,2]
[372784205,1752760241242,-861.17,0.00017458,2]
[372784206,1752760241250,-237.16714679,0.00017458,2]
[372784207,1752760241259,-2119.28,0.00017458,2]
[372784208,1752760241268,-460.0,0.00017459,2]
[372784209,1752760241277,-1275.28,0.00017459,2]
[372784210,1752760241286,-1466.19,0.00017459,2]
[372784211,1752760241295,-584.23,0.00017459,2]
[372784212,1752760241305,-460.0,0.0001748,2]
[372784213,1752760241314,-460.0,0.0001748,2]
[372784214,1752760241323,-460.0,0.0001748,2]
[372784215,1752760241331,-460.0,0.0001748,2]
[372784216,1752760241340,-363.79751571,0.0001748,2]
[372784217,1752760241349,-460.0,0.00017481,2]
[372784218,1752760241358,-2013.17,0.00017629,2]
[372784219,1752760241368,-1586.2,0.00017629,2]
[372784220,1752760241376,-1261.6,0.00017629,2]
[372784221,1752760241386,-460.0,0.00017629,2]
[372784222,1752760241395,-1260.13,0.00017629,2]
[372784223,1752760241404,-460.0,0.00017629,2]
[372784224,1752760241413,-760.38,0.00017629,2]
[372784225,1752760241422,-538.76,0.00017629,2]
[372784226,1752760241431,-460.0,0.00017629,2]
[372784227,1752760241440,-561.52,0.00017629,2]
[372784228,1752760241449,-460.0,0.0001763,2]
[372784229,1752760241464,-460.0,0.0001763,2]
[372784230,1752760241473,-460.0,0.0001763,2]
[372784231,1752760241482,-460.0,0.0001763,2]
[372784232,1752760241491,-460.0,0.0001763,2]
[372784233,1752760241500,-460.0,0.0001763,2]
[372784234,1752760241509,-460.0,0.0001763,2]
[372784235,1752760241518,-460.0,0.0001763,2]
[372784236,1752760241527,-460.0,0.00017631,2]
[372784237,1752760241537,-460.0,0.00017631,2]
[372784238,1752760241546,-460.0,0.00017631,2]
[372784239,1752760241555,-1771.28,0.00017631,2]
[372784240,1752760241564,-460.0,0.00017631,2]
[372784241,1752760241573,-460.0,0.00017631,2]
[372784242,1752760241582,-485.98,0.00017631,2]
[372784243,1752760241592,-839.39,0.00017632,2]
[372784244,1752760241601,-460.0,0.0001766,2]
[372784246,1752760241611,-233.55,0.00017686,2]
[372784248,1752760241620,-460.0,0.00017732,2]
[372784250,1752760241629,-460.0,0.00017732,2]
[372784252,1752760241639,-460.0,0.00017732,2]
[372784254,1752760241648,-460.0,0.00017732,2]
[372784255,1752760241658,-150.92,0.00017732,2]
[372784257,1752760241668,-460.0,0.00017732,2]
[372784259,1752760241681,-460.0,0.00017732,2]
[372784261,1752760241690,-460.0,0.00017732,2]
[372784263,1752760241699,-460.0,0.00017732,2]
[372784265,1752760241712,-460.0,0.00017732,2]
[372784267,1752760241722,-460.0,0.00017732,2]
[372784269,1752760241732,-1431.69,0.00017732,2]
[372784271,1752760241741,-1222.37,0.00017732,2]
[372784273,1752760241752,-861.17,0.00017732,2]
[372784275,1752760241762,-2119.28,0.00017732,2]
[372784277,1752760241772,-460.0,0.00017733,2]
[372784279,1752760241783,-1275.28,0.00017733,2]
[372784281,1752760241792,-1466.19,0.00017733,2]
[372784283,1752760241802,-584.23,0.00017733,2]
[372784285,1752760241812,-460.0,0.00017754,2]
[372784287,1752760241822,-460.0,0.00017754,2]
[372784289,1752760241831,-404.21381988,0.00017759,2]
[372784291,1752760241841,-791.92399045,0.00017838,2]
[372784293,1752760241851,-590.7,0.00017897,3]
[372784295,1752760241861,-4126.1542223,0.000179,2]
[372784297,1752760241870,-2013.17,0.00017903,2]
[372784299,1752760241879,-1586.2,0.00017903,2]
[372784301,1752760241889,-1261.6,0.00017903,2]
[372784303,1752760241898,-460.0,0.00017903,2]
[372784305,1752760241907,-1260.13,0.00017903,2]
[372784307,1752760241916,-192.29,0.00017903,2]
[372784309,1752760241925,-760.38,0.00017903,2]
[372784311,1752760241935,-538.76,0.00017903,2]
[372784313,1752760241944,-460.0,0.00017903,2]
[372784315,1752760241957,-561.52,0.00017903,2]
[372784317,1752760241967,-460.0,0.00017904,2]
[372784319,1752760241976,-460.0,0.00017904,2]
[372784321,1752760241985,-460.0,0.00017904,2]
[372784323,1752760241995,-460.0,0.00017904,2]
[372784325,1752760242004,-460.0,0.00017904,2]
[372784327,1752760242014,-460.0,0.00017904,2]
[372784329,1752760242023,-460.0,0.00017904,2]
[372784331,1752760242033,-460.0,0.00017904,2]
[372784333,1752760242042,-460.0,0.00017905,2]
[372784335,1752760242052,-460.0,0.00017905,2]
[372784337,1752760242062,-460.0,0.00017905,2]
[372784339,1752760242071,-1771.28,0.00017905,2]
[372784341,1752760242080,-460.0,0.00017905,2]
[372784343,1752760242090,-460.0,0.00017905,2]
[372784345,1752760242099,-485.98,0.00017905,2]
[372784347,1752760242108,-839.39,0.00017906,2]
[372784349,1752760242117,-597.24144798,0.00017934,2]
[372784351,1752760242128,-460.0,0.00018006,2]
[372784352,1752760242139,-460.0,0.00018006,2]
[372784355,1752760242149,-460.0,0.00018006,2]
[372784357,1752760242159,-460.0,0.00018006,2]
[372784358,1752760242169,-460.0,0.00018006,2]
[372784361,1752760242179,-460.0,0.00018006,2]
[372784362,1752760242188,-172.26,0.00018006,2]
[372784364,1752760242198,-460.0,0.00018006,2]
[372784366,1752760242212,-460.0,0.00018006,2]
[372784368,1752760242222,-1431.69,0.00018006,2]
[372784371,1752760242232,-1222.37,0.00018006,2]
[372784372,1752760242241,-861.17,0.00018006,2]
[372784375,1752760242251,-2119.28,0.00018006,2]
[372784377,1752760242261,-460.0,0.00018007,2]
[372784379,1752760242271,-1275.28,0.00018007,2]
[372784381,1752760242280,-1466.19,0.00018007,2]
[372784382,1752760242292,-584.23,0.00018007,2]
[372784385,1752760242302,-460.0,0.00018028,2]
[372784387,1752760242312,-445.04538314,0.00018028,2]
[372784388,1752760242322,-420.0,0.00018064,2]
[372784390,1752760242332,-1680.0,0.00018155,2]
[372784392,1752760242342,-4126.15422226,0.00018176,2]
[372784394,1752760242351,-2013.17,0.00018177,2]
[372784398,1752760242361,-1586.2,0.00018177,2]
[372784401,1752760242371,-1261.6,0.00018177,2]
[372784405,1752760242382,-460.0,0.00018177,2]
[372784408,1752760242392,-1260.13,0.00018177,2]
[372784411,1752760242401,-760.38,0.00018177,2]
[372784415,1752760242411,-538.76,0.00018177,2]
[372784417,1752760242420,-460.0,0.00018177,2]
[372784419,1752760242430,-561.52,0.00018177,2]
[372784421,1752760242439,-516.52,0.00018178,2]
[372784424,1752760242448,-460.0,0.00018178,2]
[372784426,1752760242460,-460.0,0.00018178,2]
[372784427,1752760242470,-460.0,0.00018178,2]
[372784430,1752760242479,-460.0,0.00018178,2]
[372784432,1752760242489,-460.0,0.00018178,2]
[372784433,1752760242498,-460.0,0.00018178,2]
[372784436,1752760242508,-460.0,0.00018178,2]
[372784438,1752760242518,-460.0,0.00018179,2]
[372784440,1752760242528,-460.0,0.00018179,2]
[372784442,1752760242537,-460.0,0.00018179,2]
[372784444,1752760242546,-1771.28,0.00018179,2]
[372784446,1752760242556,-460.0,0.00018179,2]
[372784448,1752760242565,-460.0,0.00018179,2]
[372784450,1752760242575,-485.98,0.00018179,2]
[372784463,1752760242703,-839.39,0.0001818,2]
[372784465,1752760242715,-12607.95677342,0.00018272,2]
[372784466,1752760242725,-160.0,0.00018272,2]
[372784468,1752760242734,-476.16111942,0.00018272,2]
[372784470,1752760242746,-160.0,0.00018272,2]
[372784472,1752760242755,-230.85589339,0.00018272,2]
[372784474,1752760242765,-839.15451687,0.00018272,2]
[372784476,1752760242774,-215.59244943,0.00018272,2]
[372784478,1752760242784,-160.0,0.00018272,2]
[372784480,1752760242794,-214.44804168,0.00018272,2]
[372784482,1752760242804,-160.0,0.00018272,2]
[372784484,1752760242813,-525.67742785,0.00018272,2]
[372784486,1752760242822,-160.0,0.00018272,2]
[372784488,1752760242832,-160.0,0.00018272,2]
[372784490,1752760242841,-160.0,0.00018274,2]
[372784492,1752760242851,-460.0,0.0001828,2]
[372784494,1752760242861,-460.0,0.0001828,2]
[372784496,1752760242871,-460.0,0.0001828,2]
[372784498,1752760242880,-460.0,0.0001828,2]
[372784501,1752760242890,-460.0,0.0001828,2]
[372784504,1752760242900,-460.0,0.0001828,2]
[372784507,1752760242910,-460.0,0.0001828,2]
[372784510,1752760242919,-1431.69,0.0001828,2]
[372784514,1752760242928,-1222.37,0.0001828,2]
[372784517,1752760242937,-861.17,0.0001828,2]
[372784519,1752760242947,-2119.28,0.0001828,2]
[372784521,1752760242958,-460.0,0.00018281,2]
[372784523,1752760242967,-1275.28,0.00018281,2]
[372784525,1752760242976,-1466.19,0.00018281,2]
[372784527,1752760242985,-584.23,0.00018281,2]
[372784529,1752760242995,-460.0,0.00018302,2]
[372784531,1752760243004,-291.93,0.00018423,2]
[372784533,1752760243014,-2013.17,0.00018451,2]
[372784535,1752760243024,-1586.2,0.00018451,2]